[Event "Late-Titled-Tuesday-Blitz-March-05-2024"]
[Site "Chess.com"]
[Date "2024.03.05"]
[Round "4"]
[White "SameerMujumdar"]
[Black "AungTZ"]
[Result "1-0"]
[WhiteElo "2437"]
[BlackElo "2033"]
[TimeControl "180+1"]
[EndTime "14:39:25 PST"]
[Termination "SameerMujumdar won by resignation"]

1. d4 {[%clk 0:03:00.9]} 1... Nf6 {[%clk 0:02:59.6]} 2. Nf3 {[%clk 0:02:40.7]}
2... d5 {[%clk 0:02:55.9]} 3. e3 {[%clk 0:02:37.7]} 3... Bg4 {[%clk 0:02:55]} 4.
Be2 {[%clk 0:02:37.5]} 4... Bxf3 {[%clk 0:02:53.7]} 5. Bxf3 {[%clk 0:02:33.7]}
5... Nbd7 {[%clk 0:02:54.6]} 6. c4 {[%clk 0:02:30.5]} 6... e6 {[%clk 0:02:51.6]}
7. Nc3 {[%clk 0:02:28.4]} 7... Bb4 {[%clk 0:02:50.5]} 8. O-O {[%clk 0:02:23.7]}
8... Bxc3 {[%clk 0:02:50.1]} 9. bxc3 {[%clk 0:02:19.8]} 9... O-O {[%clk
0:02:49.8]} 10. Qb3 {[%clk 0:02:17.5]} 10... Nb6 {[%clk 0:02:07.9]} 11. cxd5
{[%clk 0:02:16.3]} 11... exd5 {[%clk 0:02:05.7]} 12. a4 {[%clk 0:02:14.1]} 12...
a5 {[%clk 0:01:56.5]} 13. Ba3 {[%clk 0:02:13.2]} 13... Re8 {[%clk 0:01:56]} 14.
Bc5 {[%clk 0:02:11.3]} 14... Nc4 {[%clk 0:01:52.1]} 15. Qxb7 {[%clk 0:01:50.1]}
15... Nd2 {[%clk 0:01:46.3]} 16. Rfd1 {[%clk 0:01:49.1]} 16... Nxf3+ {[%clk
0:01:46]} 17. gxf3 {[%clk 0:01:50]} 17... Qd7 {[%clk 0:01:43.2]} 18. Qb5 {[%clk
0:01:44]} 18... c6 {[%clk 0:01:41.6]} 19. Qf1 {[%clk 0:01:36.1]} 19... Qf5
{[%clk 0:01:27.3]} 20. Qg2 {[%clk 0:01:25.1]} 20... Nd7 {[%clk 0:01:25.5]} 21.
Ba3 {[%clk 0:01:24]} 21... Re6 {[%clk 0:01:24.7]} 22. Kf1 {[%clk 0:01:17.1]}
22... Rg6 {[%clk 0:01:21.8]} 23. Qh1 {[%clk 0:01:17.6]} 23... Qh3+ {[%clk
0:01:08.4]} 24. Ke2 {[%clk 0:01:14.8]} 24... Rg2 {[%clk 0:01:05.2]} 25. Qf1
{[%clk 0:01:09.9]} 25... Re8 {[%clk 0:00:49]} 26. Bd6 {[%clk 0:01:08]} 26... Re6
{[%clk 0:00:35.4]} 27. Bg3 {[%clk 0:01:02.9]} 27... h5 {[%clk 0:00:32.8]} 28.
Rab1 {[%clk 0:01:02.1]} 28... h4 {[%clk 0:00:31.3]} 29. Bf4 {[%clk 0:01:02.7]}
29... g5 {[%clk 0:00:28.4]} 30. Bc7 {[%clk 0:01:01.7]} 30... Rf6 {[%clk
0:00:25.7]} 31. f4 {[%clk 0:00:59]} 31... g4 {[%clk 0:00:25.5]} 32. Be5 {[%clk
0:00:54.1]} 32... Qf3+ {[%clk 0:00:24.9]} 33. Ke1 {[%clk 0:00:49.7]} 33... Nxe5
{[%clk 0:00:24.9]} 34. dxe5 {[%clk 0:00:49.5]} 34... Rg6 {[%clk 0:00:20.3]} 35.
Rb8+ {[%clk 0:00:50.4]} 35... Kg7 {[%clk 0:00:20.2]} 36. f5 {[%clk 0:00:45.6]}
36... Rg5 {[%clk 0:00:20.1]} 37. f6+ {[%clk 0:00:40.9]} 37... Kh7 {[%clk
0:00:20.2]} 38. Qd3+ {[%clk 0:00:36.1]} 38... Rf5 {[%clk 0:00:14.4]} 39. Qe2
{[%clk 0:00:25.2]} 39... Qe4 {[%clk 0:00:10.2]} 40. Rd4 {[%clk 0:00:17.5]} 40...
Qb1+ {[%clk 0:00:09.7]} 41. Rxb1 {[%clk 0:00:16.7]} 41... g3 {[%clk 0:00:08.1]}
42. Rxh4+ {[%clk 0:00:15.2]} 1-0

[Event "Late-Titled-Tuesday-Blitz-March-05-2024"]
[Site "Chess.com"]
[Date "2024.03.05"]
[Round "4"]
[White "martinmena"]
[Black "lefonghua"]
[Result "0-1"]
[WhiteElo "2311"]
[BlackElo "2614"]
[TimeControl "180+1"]
[EndTime "14:39:27 PST"]
[Termination "lefonghua won on time"]

1. c4 {[%clk 0:03:00.9]} 1... Nf6 {[%clk 0:02:59.2]} 2. g3 {[%clk 0:02:59.2]}
2... g6 {[%clk 0:02:59.4]} 3. Bg2 {[%clk 0:02:59.8]} 3... Bg7 {[%clk 0:03:00.1]}
4. Nc3 {[%clk 0:03:00.3]} 4... O-O {[%clk 0:03:00.6]} 5. d3 {[%clk 0:03:00.9]}
5... c5 {[%clk 0:03:01.1]} 6. Bg5 {[%clk 0:03:00.8]} 6... Nc6 {[%clk 0:03:01.4]}
7. Qd2 {[%clk 0:03:00.4]} 7... d6 {[%clk 0:03:01.8]} 8. e4 {[%clk 0:03:00.9]}
8... a6 {[%clk 0:02:56.5]} 9. Nge2 {[%clk 0:03:00.5]} 9... Rb8 {[%clk
0:02:54.6]} 10. b3 {[%clk 0:02:33]} 10... b5 {[%clk 0:02:49.3]} 11. Rb1 {[%clk
0:02:22.5]} 11... Nd4 {[%clk 0:02:44.3]} 12. Nxd4 {[%clk 0:02:15.7]} 12... cxd4
{[%clk 0:02:45.2]} 13. Ne2 {[%clk 0:02:10.4]} 13... Nd7 {[%clk 0:02:40.1]} 14.
Bh6 {[%clk 0:02:07.1]} 14... Bxh6 {[%clk 0:02:33.2]} 15. Qxh6 {[%clk 0:02:05.9]}
15... Nc5 {[%clk 0:02:26.8]} 16. Qd2 {[%clk 0:01:59.1]} 16... bxc4 {[%clk
0:02:23.2]} 17. dxc4 {[%clk 0:01:57.4]} 17... e5 {[%clk 0:02:20.8]} 18. O-O
{[%clk 0:01:55.1]} 18... a5 {[%clk 0:02:15.7]} 19. Nc1 {[%clk 0:01:46.4]} 19...
Bb7 {[%clk 0:02:10.4]} 20. f3 {[%clk 0:01:39.8]} 20... Kg7 {[%clk 0:01:56.7]}
21. Nd3 {[%clk 0:01:39.2]} 21... Bc6 {[%clk 0:01:53.4]} 22. Nxc5 {[%clk
0:01:34.2]} 22... dxc5 {[%clk 0:01:54.3]} 23. a4 {[%clk 0:01:31.9]} 23... Rb4
{[%clk 0:01:52]} 24. Qd3 {[%clk 0:01:27]} 24... Qe7 {[%clk 0:01:45.9]} 25. f4
{[%clk 0:01:24.3]} 25... Rfb8 {[%clk 0:01:36.8]} 26. f5 {[%clk 0:01:17.8]} 26...
Qg5 {[%clk 0:01:22.1]} 27. Rfe1 {[%clk 0:00:15.9]} 27... Bd7 {[%clk 0:01:08.9]}
28. Bh3 {[%clk 0:00:11.1]} 28... f6 {[%clk 0:01:02.5]} 29. Kg2 {[%clk
0:00:09.3]} 29... Bc6 {[%clk 0:00:57]} 30. fxg6 {[%clk 0:00:09.1]} 30... hxg6
{[%clk 0:00:56.4]} 31. Kg1 {[%clk 0:00:04]} 31... Qh5 {[%clk 0:00:51.3]} 32. Be6
{[%clk 0:00:03.8]} 32... Rh8 {[%clk 0:00:47.9]} 33. Qd2 {[%clk 0:00:02.8]} 33...
Qh6 {[%clk 0:00:40.6]} 34. Qf2 {[%clk 0:00:03]} 34... Qg5 {[%clk 0:00:35]} 35.
Kh1 {[%clk 0:00:03]} 35... Rhb8 {[%clk 0:00:32.6]} 36. Bd5 {[%clk 0:00:02.8]}
36... Bd7 {[%clk 0:00:29]} 37. Qf3 {[%clk 0:00:02.1]} 37... R8b6 {[%clk
0:00:24.9]} 38. Rf1 {[%clk 0:00:01.4]} 38... Bxa4 {[%clk 0:00:20.9]} 39. h4
{[%clk 0:00:02]} 39... Qh5 {[%clk 0:00:20.4]} 40. Qxh5 {[%clk 0:00:01.4]} 40...
gxh5 {[%clk 0:00:21.3]} 41. Rf5 {[%clk 0:00:01.1]} 41... Rxb3 {[%clk 0:00:20]}
42. Rxb3 {[%clk 0:00:01.6]} 42... Bxb3 {[%clk 0:00:19.8]} 43. Rxh5 {[%clk
0:00:01.8]} 43... a4 {[%clk 0:00:20.3]} 44. Rh7+ {[%clk 0:00:01.2]} 44... Kxh7
{[%clk 0:00:20.3]} 0-1

[Event "Late-Titled-Tuesday-Blitz-March-05-2024"]
[Site "Chess.com"]
[Date "2024.03.05"]
[Round "4"]
[White "Eloist"]
[Black "Mikhail_Golubev"]
[Result "1-0"]
[WhiteElo "2437"]
[BlackElo "2630"]
[TimeControl "180+1"]
[EndTime "14:39:27 PST"]
[Termination "Eloist won on time"]

1. e4 {[%clk 0:02:58.5]} 1... c5 {[%clk 0:02:59.5]} 2. Nf3 {[%clk 0:02:57.7]}
2... d6 {[%clk 0:02:59.8]} 3. Bb5+ {[%clk 0:02:56.5]} 3... Bd7 {[%clk
0:02:59.5]} 4. Bxd7+ {[%clk 0:02:55.1]} 4... Nxd7 {[%clk 0:03:00.3]} 5. O-O
{[%clk 0:02:54.4]} 5... Ngf6 {[%clk 0:03:00.4]} 6. Qe2 {[%clk 0:02:55]} 6... e6
{[%clk 0:03:00.6]} 7. d4 {[%clk 0:02:55.1]} 7... cxd4 {[%clk 0:02:59.6]} 8. Nxd4
{[%clk 0:02:56]} 8... Rc8 {[%clk 0:02:37]} 9. c4 {[%clk 0:02:54.4]} 9... a6
{[%clk 0:02:33.5]} 10. b3 {[%clk 0:02:51.4]} 10... Be7 {[%clk 0:02:07.9]} 11.
Bb2 {[%clk 0:02:51.2]} 11... O-O {[%clk 0:02:07.6]} 12. Nc3 {[%clk 0:02:51.2]}
12... Qa5 {[%clk 0:02:03.7]} 13. Rad1 {[%clk 0:02:50.5]} 13... Rfe8 {[%clk
0:02:02.1]} 14. f4 {[%clk 0:02:41]} 14... Qh5 {[%clk 0:01:48.6]} 15. Qxh5 {[%clk
0:02:38.4]} 15... Nxh5 {[%clk 0:01:48.2]} 16. g4 {[%clk 0:02:27.6]} 16... Nhf6
{[%clk 0:01:46.1]} 17. g5 {[%clk 0:02:26.7]} 17... Nh5 {[%clk 0:01:44.2]} 18.
Kg2 {[%clk 0:02:13.1]} 18... g6 {[%clk 0:01:37.4]} 19. h4 {[%clk 0:02:08.5]}
19... Bf8 {[%clk 0:01:24.3]} 20. Nde2 {[%clk 0:02:05.8]} 20... Nc5 {[%clk
0:01:17.5]} 21. Rd2 {[%clk 0:01:56.5]} 21... Bg7 {[%clk 0:01:12.7]} 22. Rxd6
{[%clk 0:01:47.1]} 22... Nxe4 {[%clk 0:01:05.6]} 23. Nxe4 {[%clk 0:01:43.3]}
23... Bxb2 {[%clk 0:01:06]} 24. Rfd1 {[%clk 0:01:37]} 24... Ng7 {[%clk
0:00:50.7]} 25. N2g3 {[%clk 0:01:29.2]} 25... Nf5 {[%clk 0:00:44.9]} 26. R1d2
{[%clk 0:01:20.5]} 26... Nxd6 {[%clk 0:00:39.8]} 27. Nxd6 {[%clk 0:01:17.8]}
27... Red8 {[%clk 0:00:30.6]} 28. Nge4 {[%clk 0:01:17.6]} 28... Bc1 {[%clk
0:00:29.3]} 29. Rc2 {[%clk 0:01:10.9]} 29... Bxf4 {[%clk 0:00:27.9]} 30. Nxc8
{[%clk 0:01:10.3]} 30... Rxc8 {[%clk 0:00:27.5]} 31. Kf3 {[%clk 0:01:04.6]}
31... e5 {[%clk 0:00:26.1]} 32. Nd6 {[%clk 0:00:57.2]} 32... Rc7 {[%clk
0:00:17.8]} 33. c5 {[%clk 0:00:56.4]} 33... Kf8 {[%clk 0:00:13.3]} 34. Ke4
{[%clk 0:00:51.5]} 34... Ke7 {[%clk 0:00:12.2]} 35. b4 {[%clk 0:00:48]} 35...
Ke6 {[%clk 0:00:08.1]} 36. a4 {[%clk 0:00:40.7]} 36... h6 {[%clk 0:00:08.1]} 37.
gxh6 {[%clk 0:00:32.4]} 37... f5+ {[%clk 0:00:06.5]} 38. Kd3 {[%clk 0:00:31.4]}
38... e4+ {[%clk 0:00:04.5]} 39. Nxe4 {[%clk 0:00:23.6]} 39... fxe4+ {[%clk
0:00:03.9]} 40. Kxe4 {[%clk 0:00:23.7]} 40... Bxh6 {[%clk 0:00:04.6]} 41. Rg2
{[%clk 0:00:23.7]} 41... Kf6 {[%clk 0:00:03.6]} 42. Rf2+ {[%clk 0:00:24]} 42...
Kg7 {[%clk 0:00:03]} 43. Kd5 {[%clk 0:00:23.4]} 43... Rd7+ {[%clk 0:00:03]} 44.
Ke6 {[%clk 0:00:23.5]} 44... Rd4 {[%clk 0:00:02.8]} 45. Rf7+ {[%clk 0:00:22.6]}
45... Kg8 {[%clk 0:00:03.2]} 46. Rxb7 {[%clk 0:00:23.5]} 1-0

[Event "Late-Titled-Tuesday-Blitz-March-05-2024"]
[Site "Chess.com"]
[Date "2024.03.05"]
[Round "4"]
[White "prime-morty"]
[Black "Vegan4future"]
[Result "1/2-1/2"]
[WhiteElo "2595"]
[BlackElo "2479"]
[TimeControl "180+1"]
[EndTime "14:39:28 PST"]
[Termination "Game drawn by stalemate"]

1. c4 {[%clk 0:03:00.9]} 1... e5 {[%clk 0:02:59]} 2. Nc3 {[%clk 0:02:55.5]} 2...
Nc6 {[%clk 0:02:59.5]} 3. Nf3 {[%clk 0:02:56.2]} 3... g6 {[%clk 0:02:56.1]} 4.
d4 {[%clk 0:02:55.7]} 4... exd4 {[%clk 0:02:56.1]} 5. Nxd4 {[%clk 0:02:56.6]}
5... Bg7 {[%clk 0:02:56.5]} 6. Nxc6 {[%clk 0:02:55.5]} 6... bxc6 {[%clk
0:02:57.4]} 7. g3 {[%clk 0:02:55.5]} 7... Ne7 {[%clk 0:02:54.9]} 8. Bg2 {[%clk
0:02:55.8]} 8... O-O {[%clk 0:02:55.4]} 9. O-O {[%clk 0:02:56.1]} 9... Bb7
{[%clk 0:02:52.4]} 10. e4 {[%clk 0:02:54.4]} 10... Re8 {[%clk 0:02:51.6]} 11.
Be3 {[%clk 0:02:54.7]} 11... d6 {[%clk 0:02:50.9]} 12. Bd4 {[%clk 0:02:54.9]}
12... c5 {[%clk 0:02:50.9]} 13. Bxg7 {[%clk 0:02:54.5]} 13... Kxg7 {[%clk
0:02:51.8]} 14. Nd5 {[%clk 0:02:53.5]} 14... Bxd5 {[%clk 0:02:44]} 15. cxd5
{[%clk 0:02:52.7]} 15... f6 {[%clk 0:02:43.6]} 16. b3 {[%clk 0:02:50.5]} 16...
Ng8 {[%clk 0:02:30]} 17. Qd3 {[%clk 0:02:48.2]} 17... Qd7 {[%clk 0:02:25]} 18.
h4 {[%clk 0:02:39]} 18... h5 {[%clk 0:02:24.7]} 19. Kh2 {[%clk 0:02:38.5]} 19...
Nh6 {[%clk 0:02:22.5]} 20. f3 {[%clk 0:02:37.6]} 20... f5 {[%clk 0:01:54.5]} 21.
Bh3 {[%clk 0:02:36.3]} 21... Rf8 {[%clk 0:01:54.8]} 22. Qc3+ {[%clk 0:02:33.5]}
22... Kh7 {[%clk 0:01:53.2]} 23. Rae1 {[%clk 0:02:31.4]} 23... Qg7 {[%clk
0:01:41.7]} 24. Qxg7+ {[%clk 0:02:27.4]} 24... Kxg7 {[%clk 0:01:42.6]} 25. e5
{[%clk 0:02:28]} 25... dxe5 {[%clk 0:01:38.7]} 26. Rxe5 {[%clk 0:02:28.9]} 26...
Rae8 {[%clk 0:01:37.9]} 27. Rfe1 {[%clk 0:02:20.4]} 27... Rxe5 {[%clk
0:01:25.7]} 28. Rxe5 {[%clk 0:02:21.3]} 28... Nf7 {[%clk 0:01:26.4]} 29. Re7
{[%clk 0:02:19.8]} 29... Rd8 {[%clk 0:01:27]} 30. Rxc7 {[%clk 0:02:12.7]} 30...
Rxd5 {[%clk 0:01:27]} 31. Bf1 {[%clk 0:02:13.3]} 31... Rd2+ {[%clk 0:01:25.1]}
32. Kh3 {[%clk 0:02:11.6]} 32... Kf6 {[%clk 0:01:25.6]} 33. f4 {[%clk
0:02:07.3]} 33... Nd6 {[%clk 0:01:17]} 34. Bc4 {[%clk 0:01:57.6]} 34... Nxc4
{[%clk 0:01:14.3]} 35. bxc4 {[%clk 0:01:57.9]} 35... Rxa2 {[%clk 0:01:15.1]} 36.
Rxc5 {[%clk 0:01:56.3]} 36... a5 {[%clk 0:01:15]} 37. Rc6+ {[%clk 0:01:55.8]}
37... Kf7 {[%clk 0:01:14.8]} 38. Ra6 {[%clk 0:01:55.8]} 38... a4 {[%clk
0:01:14.6]} 39. c5 {[%clk 0:01:56.1]} 39... a3 {[%clk 0:01:12.5]} 40. c6 {[%clk
0:01:56.1]} 40... Ke7 {[%clk 0:00:56.7]} 41. c7 {[%clk 0:01:53.1]} 41... Kd7
{[%clk 0:00:57.6]} 42. Rxg6 {[%clk 0:01:40]} 42... Rc2 {[%clk 0:00:57.6]} 43.
Ra6 {[%clk 0:01:37]} 43... a2 {[%clk 0:00:57.7]} 44. Ra7 {[%clk 0:01:36.5]}
44... Kc8 {[%clk 0:00:56.9]} 45. g4 {[%clk 0:01:27.4]} 45... fxg4+ {[%clk
0:00:50]} 46. Kg3 {[%clk 0:01:27.5]} 46... Rc3+ {[%clk 0:00:35.4]} 47. Kg2
{[%clk 0:01:26.2]} 47... Rh3 {[%clk 0:00:26.4]} 48. Rxa2 {[%clk 0:01:14.9]}
48... Rxh4 {[%clk 0:00:26.1]} 49. Rc2 {[%clk 0:01:08.8]} 49... Rh3 {[%clk
0:00:25.2]} 50. Rc4 {[%clk 0:01:06.7]} 50... Rf3 {[%clk 0:00:22.6]} 51. Kh2
{[%clk 0:01:04.7]} 51... h4 {[%clk 0:00:19.8]} 52. Kg2 {[%clk 0:01:03.7]} 52...
h3+ {[%clk 0:00:19.6]} 53. Kh2 {[%clk 0:01:04.2]} 53... Rf2+ {[%clk 0:00:14.4]}
54. Kg3 {[%clk 0:01:04.4]} 54... h2 {[%clk 0:00:14.3]} 55. Rc1 {[%clk
0:01:00.5]} 55... Rc2 {[%clk 0:00:12.2]} 56. Rh1 {[%clk 0:00:55.2]} 56... Kxc7
{[%clk 0:00:11.4]} 57. Rxh2 {[%clk 0:00:54.1]} 57... Rxh2 {[%clk 0:00:09]} 58.
Kxh2 {[%clk 0:00:54.5]} 58... Kd6 {[%clk 0:00:09.9]} 59. Kg3 {[%clk 0:00:55.2]}
59... Ke6 {[%clk 0:00:10.8]} 60. Kxg4 {[%clk 0:00:55.7]} 60... Kf6 {[%clk
0:00:11.7]} 61. f5 {[%clk 0:00:56.2]} 61... Kf7 {[%clk 0:00:12.3]} 62. Kf4
{[%clk 0:00:56.9]} 62... Kf6 {[%clk 0:00:13.2]} 63. Ke4 {[%clk 0:00:57.3]} 63...
Kf7 {[%clk 0:00:13.8]} 64. Ke5 {[%clk 0:00:57.9]} 64... Ke7 {[%clk 0:00:14.3]}
65. f6+ {[%clk 0:00:58.8]} 65... Kf7 {[%clk 0:00:14.6]} 66. Kf5 {[%clk
0:00:59.7]} 66... Kf8 {[%clk 0:00:15.2]} 67. Ke6 {[%clk 0:01:00.6]} 67... Ke8
{[%clk 0:00:15.5]} 68. Ke5 {[%clk 0:01:00.9]} 68... Kf7 {[%clk 0:00:16.4]} 69.
Kf5 {[%clk 0:01:01.8]} 69... Kf8 {[%clk 0:00:17]} 70. Kg6 {[%clk 0:01:02.7]}
70... Kg8 {[%clk 0:00:17.3]} 71. f7+ {[%clk 0:01:03.3]} 71... Kf8 {[%clk
0:00:17.6]} 72. Kf6 {[%clk 0:01:04.2]} 1/2-1/2

[Event "Late-Titled-Tuesday-Blitz-March-05-2024"]
[Site "Chess.com"]
[Date "2024.03.05"]
[Round "4"]
[White "GianmarcoVaR"]
[Black "Sanan_Sjugirov"]
[Result "0-1"]
[WhiteElo "2776"]
[BlackElo "2995"]
[TimeControl "180+1"]
[EndTime "14:39:30 PST"]
[Termination "Sanan_Sjugirov won by resignation"]

1. e4 {[%clk 0:03:00.9]} 1... c6 {[%clk 0:02:59]} 2. d4 {[%clk 0:03:00.8]} 2...
d5 {[%clk 0:02:59.7]} 3. e5 {[%clk 0:03:00.3]} 3... Bf5 {[%clk 0:02:59.6]} 4.
Nf3 {[%clk 0:03:00.6]} 4... e6 {[%clk 0:03:00]} 5. Be2 {[%clk 0:03:01.2]} 5...
Ne7 {[%clk 0:02:58.3]} 6. O-O {[%clk 0:03:01.4]} 6... Nd7 {[%clk 0:02:58.1]} 7.
a4 {[%clk 0:03:01.3]} 7... a5 {[%clk 0:02:58]} 8. Nbd2 {[%clk 0:02:59.7]} 8...
h6 {[%clk 0:02:57.8]} 9. Nb3 {[%clk 0:03:00]} 9... g5 {[%clk 0:02:57.4]} 10. Bd2
{[%clk 0:02:59.1]} 10... Bg7 {[%clk 0:02:52.3]} 11. c4 {[%clk 0:02:44.6]} 11...
dxc4 {[%clk 0:02:48.1]} 12. Bxc4 {[%clk 0:02:45.3]} 12... O-O {[%clk 0:02:46.2]}
13. Qe2 {[%clk 0:02:31.8]} 13... Nd5 {[%clk 0:02:10.8]} 14. Ne1 {[%clk 0:02:27]}
14... c5 {[%clk 0:01:13.7]} 15. Bxd5 {[%clk 0:01:37.1]} 15... exd5 {[%clk
0:01:13.1]} 16. Nxc5 {[%clk 0:01:37.6]} 16... Nxc5 {[%clk 0:01:10.7]} 17. dxc5
{[%clk 0:01:38.5]} 17... Qc7 {[%clk 0:01:01.8]} 18. Bc3 {[%clk 0:01:23]} 18...
Qxc5 {[%clk 0:00:58.6]} 19. Rd1 {[%clk 0:01:04.5]} 19... Rfe8 {[%clk 0:00:57.5]}
20. Qf3 {[%clk 0:01:01.5]} 20... Be4 {[%clk 0:00:54.4]} 21. Qg3 {[%clk 0:01:02]}
21... Ra6 {[%clk 0:00:46.2]} 22. Nf3 {[%clk 0:00:55.8]} 22... Rae6 {[%clk
0:00:35.8]} 23. h4 {[%clk 0:00:52.4]} 23... Rg6 {[%clk 0:00:19]} 24. hxg5 {[%clk
0:00:52.3]} 24... hxg5 {[%clk 0:00:19.9]} 25. Nxg5 {[%clk 0:00:52.7]} 25... Bc2
{[%clk 0:00:07.6]} 26. Rc1 {[%clk 0:00:37.3]} 26... Bxa4 {[%clk 0:00:04.3]} 27.
e6 {[%clk 0:00:37.8]} 27... f6 {[%clk 0:00:01.8]} 28. Bxf6 {[%clk 0:00:23.5]}
28... Qf8 {[%clk 0:00:02.4]} 29. Bxg7 {[%clk 0:00:12.5]} 29... Qxg7 {[%clk
0:00:03.3]} 30. f4 {[%clk 0:00:12]} 30... Rgxe6 {[%clk 0:00:03.1]} 31. f5 {[%clk
0:00:09.6]} 31... Re3 {[%clk 0:00:03.1]} 32. Qh4 {[%clk 0:00:08.5]} 32... R3e4
{[%clk 0:00:01.8]} 33. Nxe4 {[%clk 0:00:06.1]} 33... Rxe4 {[%clk 0:00:02.7]} 34.
Rf4 {[%clk 0:00:06.6]} 34... Qd4+ {[%clk 0:00:02.4]} 35. Rf2 {[%clk 0:00:07.1]}
35... Rxh4 {[%clk 0:00:02.4]} 36. f6 {[%clk 0:00:07.7]} 36... Be8 {[%clk
0:00:01.6]} 37. f7+ {[%clk 0:00:08.6]} 37... Bxf7 {[%clk 0:00:01.9]} 38. Rf1
{[%clk 0:00:09.2]} 38... Rh7 {[%clk 0:00:01.9]} 0-1

[Event "Late-Titled-Tuesday-Blitz-March-05-2024"]
[Site "Chess.com"]
[Date "2024.03.05"]
[Round "4"]
[White "rodp92"]
[Black "jstopa4"]
[Result "0-1"]
[WhiteElo "2491"]
[BlackElo "2705"]
[TimeControl "180+1"]
[EndTime "14:39:30 PST"]
[Termination "jstopa4 won on time"]

1. e4 {[%clk 0:03:00.9]} 1... e6 {[%clk 0:02:57.8]} 2. d4 {[%clk 0:03:00.7]}
2... d5 {[%clk 0:02:58]} 3. Nd2 {[%clk 0:03:01.2]} 3... c5 {[%clk 0:02:43.1]} 4.
exd5 {[%clk 0:02:58.9]} 4... exd5 {[%clk 0:02:43.4]} 5. Bb5+ {[%clk 0:02:58.9]}
5... Bd7 {[%clk 0:02:42.7]} 6. Bxd7+ {[%clk 0:02:58.1]} 6... Nxd7 {[%clk
0:02:43]} 7. Ngf3 {[%clk 0:02:58.2]} 7... Ngf6 {[%clk 0:02:42.9]} 8. O-O {[%clk
0:02:58.1]} 8... Be7 {[%clk 0:02:43.2]} 9. Re1 {[%clk 0:02:56.3]} 9... O-O
{[%clk 0:02:43.2]} 10. h3 {[%clk 0:02:54.1]} 10... Rc8 {[%clk 0:02:36.2]} 11. c3
{[%clk 0:02:53.6]} 11... Re8 {[%clk 0:02:26.7]} 12. Qa4 {[%clk 0:02:49.4]} 12...
a6 {[%clk 0:02:24.6]} 13. a3 {[%clk 0:02:38.7]} 13... Rc6 {[%clk 0:02:20.3]} 14.
Ne5 {[%clk 0:02:27.9]} 14... Re6 {[%clk 0:02:13]} 15. Ndf3 {[%clk 0:02:22]}
15... b5 {[%clk 0:02:12.2]} 16. Qc2 {[%clk 0:02:18.7]} 16... h6 {[%clk
0:02:05.6]} 17. Be3 {[%clk 0:02:12.9]} 17... c4 {[%clk 0:01:59.2]} 18. Re2
{[%clk 0:02:06]} 18... Nb6 {[%clk 0:01:53.7]} 19. Rae1 {[%clk 0:02:02]} 19...
Bf8 {[%clk 0:01:53.7]} 20. Bf4 {[%clk 0:01:55.1]} 20... Qc8 {[%clk 0:01:47]} 21.
g4 {[%clk 0:01:48.5]} 21... Ne4 {[%clk 0:01:43.3]} 22. Kg2 {[%clk 0:01:34.9]}
22... a5 {[%clk 0:01:39.8]} 23. Nd2 {[%clk 0:01:21.4]} 23... Nf6 {[%clk
0:01:15]} 24. f3 {[%clk 0:00:58.5]} 24... b4 {[%clk 0:01:14.9]} 25. axb4 {[%clk
0:00:57.1]} 25... axb4 {[%clk 0:01:15.1]} 26. Nf1 {[%clk 0:00:50.9]} 26... Nfd7
{[%clk 0:01:00]} 27. Ng3 {[%clk 0:00:46.1]} 27... f6 {[%clk 0:00:54.2]} 28. Ng6
{[%clk 0:00:42.3]} 28... Rxe2+ {[%clk 0:00:53.7]} 29. Rxe2 {[%clk 0:00:43.2]}
29... b3 {[%clk 0:00:45.2]} 30. Qf5 {[%clk 0:00:36.5]} 30... Rxe2+ {[%clk
0:00:42.8]} 31. Nxe2 {[%clk 0:00:37.4]} 31... Qe8 {[%clk 0:00:41.6]} 32. Kf2
{[%clk 0:00:34]} 32... Kf7 {[%clk 0:00:30.1]} 33. Bc7 {[%clk 0:00:29.3]} 33...
Na4 {[%clk 0:00:21.2]} 34. Nef4 {[%clk 0:00:21.7]} 34... Ndb6 {[%clk 0:00:17.7]}
35. Nh8+ {[%clk 0:00:11.1]} 35... Kg8 {[%clk 0:00:17.6]} 36. Nhg6 {[%clk
0:00:11.2]} 36... Qd7 {[%clk 0:00:14.3]} 37. Qxd7 {[%clk 0:00:09.4]} 37... Nxd7
{[%clk 0:00:14.8]} 38. Nxd5 {[%clk 0:00:08.9]} 38... Nxb2 {[%clk 0:00:15.1]} 39.
Ne3 {[%clk 0:00:05]} 39... Nd3+ {[%clk 0:00:15.2]} 40. Ke2 {[%clk 0:00:03.7]}
40... b2 {[%clk 0:00:16.1]} 41. Nxc4 {[%clk 0:00:04.1]} 41... b1=Q {[%clk
0:00:16.2]} 42. Nd2 {[%clk 0:00:02.3]} 42... Nc1+ {[%clk 0:00:15.4]} 43. Kf2
{[%clk 0:00:01.1]} 43... Nb3 {[%clk 0:00:16.1]} 0-1

[Event "Late-Titled-Tuesday-Blitz-March-05-2024"]
[Site "Chess.com"]
[Date "2024.03.05"]
[Round "4"]
[White "ventdelest"]
[Black "Felix-Rose"]
[Result "0-1"]
[WhiteElo "2071"]
[BlackElo "2292"]
[TimeControl "180+1"]
[EndTime "14:39:31 PST"]
[Termination "Felix-Rose won by resignation"]

1. e4 {[%clk 0:02:59.6]} 1... e5 {[%clk 0:02:59.3]} 2. Nf3 {[%clk 0:02:59.3]}
2... Nc6 {[%clk 0:02:59.5]} 3. Bc4 {[%clk 0:02:59.4]} 3... Nf6 {[%clk
0:02:59.3]} 4. d3 {[%clk 0:02:59.1]} 4... Bc5 {[%clk 0:02:59.3]} 5. c3 {[%clk
0:02:50.7]} 5... d6 {[%clk 0:02:59.3]} 6. Nbd2 {[%clk 0:02:49.3]} 6... a5 {[%clk
0:02:59.4]} 7. a4 {[%clk 0:02:47.6]} 7... Ba7 {[%clk 0:02:59.6]} 8. O-O {[%clk
0:02:45.7]} 8... O-O {[%clk 0:02:59.5]} 9. Re1 {[%clk 0:02:45.6]} 9... Be6
{[%clk 0:02:59.5]} 10. Bb5 {[%clk 0:02:40.5]} 10... Ne7 {[%clk 0:02:58.9]} 11.
d4 {[%clk 0:02:39]} 11... Ng6 {[%clk 0:02:58.9]} 12. Nf1 {[%clk 0:02:31.5]}
12... c6 {[%clk 0:02:58.9]} 13. Bd3 {[%clk 0:02:28.5]} 13... h6 {[%clk 0:02:45]}
14. Ng3 {[%clk 0:02:22.5]} 14... Re8 {[%clk 0:02:42.9]} 15. h3 {[%clk
0:02:16.3]} 15... Qc7 {[%clk 0:02:31]} 16. Be3 {[%clk 0:02:14.4]} 16... Bb6
{[%clk 0:01:51.6]} 17. Qd2 {[%clk 0:02:09.7]} 17... Rad8 {[%clk 0:01:49.1]} 18.
Bxh6 {[%clk 0:02:03.4]} 18... gxh6 {[%clk 0:01:47.1]} 19. Qxh6 {[%clk
0:02:04.3]} 19... Qe7 {[%clk 0:01:23.4]} 20. Nf5 {[%clk 0:01:38.5]} 20... Qf8
{[%clk 0:01:01.1]} 21. Qg5 {[%clk 0:01:37.2]} 21... Nh7 {[%clk 0:00:59.1]} 22.
Qg3 {[%clk 0:01:31.2]} 22... Kh8 {[%clk 0:00:46.7]} 23. h4 {[%clk 0:01:12.7]}
23... Bxf5 {[%clk 0:00:38.2]} 24. exf5 {[%clk 0:01:11.4]} 24... Nf4 {[%clk
0:00:38.8]} 25. Be4 {[%clk 0:00:50]} 25... Qh6 {[%clk 0:00:17.7]} 26. dxe5
{[%clk 0:00:43.8]} 26... Rg8 {[%clk 0:00:10.5]} 27. Ng5 {[%clk 0:00:42.5]} 27...
Nxg5 {[%clk 0:00:10.7]} 28. hxg5 {[%clk 0:00:37.5]} 28... Rxg5 {[%clk
0:00:10.3]} 29. Qh2 {[%clk 0:00:21.4]} 29... Rh5 {[%clk 0:00:08.1]} 30. Qxh5
{[%clk 0:00:19.2]} 30... Qxh5 {[%clk 0:00:07.6]} 31. exd6 {[%clk 0:00:17.8]}
31... Rg8 {[%clk 0:00:07.7]} 32. g3 {[%clk 0:00:11.5]} 32... Rxg3+ {[%clk
0:00:06.8]} 33. Kf1 {[%clk 0:00:11.3]} 33... Qh3+ {[%clk 0:00:06.8]} 0-1